[Event "Turkey IS Bank Super League 2017"]
[Site "Darica-Kocaeli"]
[Date "2017.07.31"]
[Round "7"]
[White "Tuna, Alp"]
[Black "Ozenir, Ekin Baris"]
[Result "1/2-1/2"]
[ECO "C08"]
[WhiteElo "2280"]
[BlackElo "2098"]
[Annotator "NA"]
[PlyCount "127"]
[EventType "team-tourn"]
[EventCountry "TUR"]
[SourceTitle "playchess.com"]
[Source "ChessBase"]
[SourceQuality "1"]
[TimeControl "40/5400+30:1800+30"]

1. e4 {[%emt 0:00:30]} e6 {[%emt 0:01:00]} 2. d4 {[%emt 0:00:30]} d5 {[%emt 0:00:30]} 3. Nd2 {[%emt 0:00:30]} c5 {[%emt 0:00:30]} 4. Ngf3 {[%emt 0:00:30]} Nf6 {[%emt 0:00:30]} 5. exd5 {[%emt 0:00:30]} exd5 {[%emt 0:00:30]} 6. Bb5+ {[%emt 0:00:30]} Bd7 {[%emt 0:00:30]} 7. Bxd7+ {[%emt 0:00:30]} Nbxd7 {[%emt 0:00:30]} 8. O-O {[%emt 0:00:30]} Be7 {[%emt 0:00:30]} 9. dxc5 {[%emt 0:00:00]} Nxc5 {[%emt 0:00:30]} 10. Nb3 {[%emt 0:00:00]} Nce4 {[%emt 0:00:30]} 11. Nfd4 {[%emt 0:00:00]} Qd7 {[%emt 0:00:30]} 12. f3 {[%emt 0:00:00]} Nd6 {[%emt 0:01:30]} 13. Nc5 {[%emt 0:00:00] C08: French Tarrasch: 3...c5 4 exd5 exd5 sidelines} Qc8 {[%emt 0:01:30]} 14. Nd3 {[%emt 0:00:00]} O-O {[%emt 0:00:30]} 15. b3 {[%emt 0:10:30]} Bd8 {[%emt 0:05:30]} 16. Be3 {[%emt 0:01:30]} Bb6 {[%emt 0:00:30]} 17. Qd2 {[%emt 0:01:30]} Re8 {[%emt 0:07:30]} 18. Bf2 {[%emt 0:01:30] [#]} Qd7 $146 {[%emt 0:10:30]} ({Predecessor:} 18... Nf5 19. c3 Nxd4 20. Bxd4 Bxd4+ 21. cxd4 Qf5 22. Rfe1 h6 23. Re5 Rxe5 24. Nxe5 Nd7 25. Re1 Rc8 26. Nxd7 {½-½ (26) Sokolov,A (2596)-Vaganian,R (2617) Bazna 2008}) 19. Rae1 {[%emt 0:19:30]} Rac8 {[%emt 0:08:30]} 20. Rxe8+ {[%emt 0:02:30]} Qxe8 {[%emt 0:05:30]} 21. Re1 {[%emt 0:02:30]} Qd8 {[%emt 0:01:30]} 22. Re2 {[%emt 0:03:30]} Rc7 {[%emt 0:14:30]} 23. Kf1 {[%emt 0:17:30]} h6 {[%emt 0:05:30]} 24. Qf4 {[%emt 0:02:30]} Re7 {[%emt 0:09:30]} 25. Rxe7 $14 {[%emt 0:11:30]} Qxe7 {[%emt 0:00:30]} 26. Qe5 {[%emt 0:05:13]} Qd7 {[%emt 0:04:30]} 27. Bg3 {[%emt 0:07:41]} Nde8 {[%emt 0:02:07]} 28. Bf2 {[%emt 0:04:28]} Nd6 {[%emt 0:05:46]} 29. Ke2 {[%emt 0:03:13]} Bc7 {[%emt 0:04:27]} 30. Qe3 {[%emt 0:01:02]} Bb6 {[%emt 0:01:38]} 31. Qf4 {[%emt 0:03:10]} Bc7 {[%emt 0:00:53]} 32. Qd2 {[%emt 0:01:02]} Nf5 {[%emt 0:01:03]} 33. Kd1 {[%emt 0:00:08]} b6 {[%emt 0:03:02]} 34. g4 {[%emt 0:00:47]} Nxd4 {[%emt 0:00:12]} 35. Bxd4 {[%emt 0:00:15]} Qe6 {[%emt 0:01:00]} 36. h3 {[%emt 0:00:52]} Nd7 {[%emt 0:00:52]} 37. Qc3 {[%emt 0:00:50]} Bg3 {[%emt 0:00:45]} 38. Kc1 {[%emt 0:01:15]} f6 {[%emt 0:00:39]} 39. Qd2 {[%emt 0:00:29]} Ne5 {[%emt 0:01:06]} 40. Nf4 {[%emt 0:00:00]} Bxf4 {[%emt 0:01:30]} 41. Qxf4 {[%emt 0:01:35]} Nc6 {[%emt 0:01:30]} 42. Kd2 {[%emt 0:17:31]} Qe7 {[%emt 0:02:30]} 43. Qe3 {[%emt 0:01:34]} Kf7 {[%emt 0:07:30]} 44. Qxe7+ {[%emt 0:06:11]} Kxe7 {[%emt 0:00:00]} 45. Bb2 {[%emt 0:00:52]} Ke6 {[%emt 0:01:00]} 46. a4 {[%emt 0:01:29]} a6 {[%emt 0:03:03]} 47. Ke3 {[%emt 0:02:11]} b5 {[%emt 0:01:09]} 48. Bc3 {[%emt 0:00:36]} g6 {[%emt 0:03:08]} 49. h4 {[%emt 0:01:22]} h5 {[%emt 0:01:33]} 50. axb5 {[%emt 0:00:50]} axb5 {[%emt 0:00:10]} 51. Be1 {[%emt 0:01:03]} f5 {[%emt 0:03:19]} 52. gxh5 {[%emt 0:01:19]} gxh5 {[%emt 0:00:17]} 53. Bc3 {[%emt 0:00:00]} Kf7 {[%emt 0:01:22]} 54. Kf4 {[%emt 0:00:29]} d4 {[%emt 0:03:00]} 55. Bb2 {[%emt 0:01:17]} Kg6 {[%emt 0:00:09]} 56. c3 {[%emt 0:00:15]} dxc3 {[%emt 0:00:41]} 57. Bxc3 {[%emt 0:00:01]} b4 {[%emt 0:00:14]} 58. Bd2 {[%emt 0:00:56]} Kf6 {[%emt 0:00:31]} 59. Be1 {[%emt 0:00:15]} Kg6 {[%emt 0:00:17]} 60. Bd2 {[%emt 0:01:02]} Kf6 {[%emt 0:00:30]} 61. Be1 {[%emt 0:00:00]} Kg6 {[%emt 0:00:00]} 62. Ke3 {[%emt 0:00:34]} Kf6 {[%emt 0:00:31]} 63. Kd3 {[%emt 0:00:12]} Ke5 {[%emt 0:00:16]} 64. Ke3 {[%emt 0:00:55]} 1/2-1/2

[Event "Turkey IS Bank Super League 2017"]
[Site "Darica-Kocaeli"]
[Date "2017.07.31"]
[Round "7"]
[White "Demircioglu, Emre"]
[Black "Uzumcu, Ahmet Utku"]
[Result "1/2-1/2"]
[ECO "D85"]
[WhiteElo "2265"]
[BlackElo "2223"]
[Annotator "NA"]
[PlyCount "69"]
[EventType "team-tourn"]
[EventCountry "TUR"]
[SourceTitle "playchess.com"]
[Source "ChessBase"]
[SourceQuality "1"]
[TimeControl "40/5400+30:1800+30"]

1. d4 {[%emt 0:00:30]} Nf6 {[%emt 0:02:00]} 2. c4 {[%emt 0:00:30]} g6 {[%emt 0:00:30]} 3. Nc3 {[%emt 0:00:30]} d5 {[%emt 0:00:30]} 4. cxd5 {[%emt 0:00:30]} Nxd5 {[%emt 0:00:30]} 5. e4 {[%emt 0:00:30]} Nxc3 {[%emt 0:00:30]} 6. bxc3 {[%emt 0:00:30]} Bg7 {[%emt 0:00:30]} 7. Be3 {[%emt 0:00:30]} c5 {[%emt 0:00:30]} 8. Qd2 {[%emt 0:00:30]} Nc6 {[%emt 0:00:30]} 9. Nf3 {[%emt 0:00:00]} cxd4 {[%emt 0:00:30]} 10. cxd4 {[%emt 0:00:00]} O-O {[%emt 0:02:30]} 11. Rb1 {[%emt 0:06:30]} Qa5 {[%emt 0:09:30] D85: Exchange Grünfeld: Unusual White 7th moves and lines with 7 Nf3} (11... Bg4 $5 {[%cal Rg4f3]}) 12. Qxa5 {[%emt 0:24:30] LiveBook: 22 Games} Nxa5 {[%emt 0:00:00]} 13. h3 {[%emt 0:02:30]} (13. Bd3 Rd8 14. O-O b6 15. Rfd1 Bb7 16. Bd2 Nc6 17. d5 Ne5 18. Nxe5 Bxe5 {½-½ (68) Akobian,V (2645)-Xiong,J (2674) Saint Louis 2017}) 13... f5 $146 {[%emt 0:09:00]} ({Predecessor:} 13... b6 14. Bd3 f5 15. Bd2 fxe4 16. Bxe4 Bb7 17. Bxb7 Nxb7 18. O-O Nd6 19. Bb4 {½-½ (41) Stukopin,A (2553)-Gordievsky,D (2435) Loo 2014}) 14. e5 {[%emt 0:02:30]} b6 {[%emt 0:03:30]} 15. Bd2 {[%emt 0:11:30]} Be6 {[%emt 0:06:30]} 16. Bxa5 {[%emt 0:00:30]} bxa5 {[%emt 0:00:30]} 17. Ba6 {[%emt 0:01:30]} Rab8 {[%emt 0:05:30]} 18. O-O {[%emt 0:00:30]} Bh6 {[%emt 0:01:30]} 19. h4 {[%emt 0:07:30]} Rfd8 {[%emt 0:03:30]} 20. a4 {[%emt 0:03:30]} Bd5 $17 {[%emt 0:03:30]} 21. Ng5 {[%emt 0:03:30]} Bxg5 {[%emt 0:05:30]} 22. hxg5 {[%emt 0:00:30]} Rb4 {[%emt 0:00:00]} 23. Rbc1 {[%emt 0:02:30]} Rxd4 {[%emt 0:09:00]} 24. Rc7 {[%emt 0:00:30]} Kf8 {[%emt 0:01:30]} 25. Rxa7 {[%emt 0:02:30]} Ra8 {[%emt 0:12:30]} 26. Rxa8+ {[%emt 0:00:30]} Bxa8 {[%emt 0:00:30]} 27. Rc1 {[%emt 0:01:30]} Kf7 {[%emt 0:00:30]} 28. Rc8 {[%emt 0:05:30]} Bd5 {[%emt 0:03:30]} 29. Rc5 {[%emt 0:01:30]} Bb3 {[%emt 0:02:52]} 30. Rxa5 {[%emt 0:00:30]} Bxa4 {[%emt 0:00:59]} 31. f3 {[%emt 0:05:02]} Bb3 {[%emt 0:01:51]} 32. Rc5 {[%emt 0:03:25]} f4 {[%emt 0:02:26]} 33. Rc8 {[%emt 0:01:00]} Rd1+ {[%emt 0:03:11]} 34. Kh2 {[%emt 0:01:10]} Re1 {[%emt 0:00:34]} 35. Bc4+ {[%emt 0:00:40]} 1/2-1/2

[Event "Turkey IS Bank Super League 2017"]
[Site "Darica-Kocaeli"]
[Date "2017.07.31"]
[Round "7"]
[White "Yaran, Siar"]
[Black "Citak, Selim"]
[Result "1/2-1/2"]
[ECO "C36"]
[WhiteElo "2253"]
[BlackElo "2306"]
[Annotator "NA"]
[PlyCount "99"]
[EventType "team-tourn"]
[EventCountry "TUR"]
[SourceTitle "playchess.com"]
[Source "ChessBase"]
[SourceQuality "1"]
[TimeControl "40/5400+30:1800+30"]

1. e4 {[%emt 0:00:30]} e5 {[%emt 0:02:00]} 2. f4 {[%emt 0:00:30]} d5 {[%emt 0:00:30]} 3. exd5 {[%emt 0:00:30]} exf4 {[%emt 0:00:30]} 4. Nf3 {[%emt 0:00:30]} Nf6 {[%emt 0:00:30]} 5. Bc4 {[%emt 0:00:30]} Nxd5 {[%emt 0:00:00]} 6. O-O {[%emt 0:03:30]} Be6 {[%emt 0:00:00]} 7. Bb3 {[%emt 0:00:30]} c5 {[%emt 0:00:00] C36: King's Gambit Accepted: 3 Nf3 d5} 8. d4 {[%emt 0:00:00]} (8. Kh1 Nc6 9. d4 c4 10. Ba4 Bd6 11. b3 c3 12. Qd3 O-O 13. Bxc6 bxc6 14. Nxc3 Re8 15. Nxd5 Bxd5 {1-0 (41) Nakamura,H (2758)-Adams,M (2734) London 2011}) 8... cxd4 {[%emt 0:02:00]} 9. Nxd4 {[%emt 0:03:00]} Bc5 {[%emt 0:02:30]} 10. Kh1 {[%emt 0:01:30]} Bxd4 {[%emt 0:03:30]} 11. Qxd4 {[%emt 0:01:30]} O-O {[%emt 0:09:30] LiveBook: 4 Games} 12. c4 {[%emt 0:18:30]} Nc6 {[%emt 0:00:30]} 13. Qe4 {[%emt 0:00:30]} Nf6 {[%emt 0:31:30]} 14. Qxf4 {[%emt 0:00:30]} Qd4 {[%emt 0:08:30]} 15. Bd2 $146 {[%emt 0:28:30]} ({Predecessor:} 15. Nc3) 15... Qxf4 {[%emt 0:06:30]} 16. Rxf4 {[%emt 0:00:00]} Ne5 {[%emt 0:01:30]} 17. Bc3 {[%emt 0:02:00]} Nd3 {[%emt 0:00:30]} 18. Rd4 {[%emt 0:13:30]} Ne4 {[%emt 0:03:30]} 19. Kg1 {[%emt 0:00:30]} Nxc3 $11 {[%emt 0:00:30]} 20. Nxc3 {[%emt 0:00:30]} Rfd8 {[%emt 0:03:30]} 21. Nd5 {[%emt 0:03:30]} Bxd5 {[%emt 0:06:48]} 22. cxd5 {[%emt 0:03:25]} Nc5 {[%emt 0:00:05]} 23. Rc1 {[%emt 0:05:17]} Nxb3 {[%emt 0:02:42]} 24. axb3 {[%emt 0:00:01]} Rd7 {[%emt 0:00:40]} 25. Kf2 {[%emt 0:01:55]} f5 {[%emt 0:01:18]} 26. Kf3 {[%emt 0:02:17]} Rad8 {[%emt 0:00:10]} 27. Rcd1 {[%emt 0:03:06]} Kf7 {[%emt 0:00:41]} 28. d6 {[%emt 0:00:29]} Ke6 {[%emt 0:00:28]} 29. Re1+ {[%emt 0:00:30]} Kf6 {[%emt 0:00:30]} 30. Red1 {[%emt 0:00:00]} g5 {[%emt 0:02:00]} 31. h4 {[%emt 0:00:30]} h6 {[%emt 0:00:49]} 32. hxg5+ {[%emt 0:00:41]} hxg5 {[%emt 0:00:30]} 33. g4 {[%emt 0:00:06]} fxg4+ {[%emt 0:00:36]} 34. Kxg4 {[%emt 0:00:21]} Ke5 {[%emt 0:00:50]} 35. Rd5+ {[%emt 0:00:42]} Ke6 {[%emt 0:00:02]} 36. Rxg5 {[%emt 0:00:57]} Rxd6 {[%emt 0:01:04]} 37. Rg6+ {[%emt 0:01:39]} Ke5 {[%emt 0:00:17]} 38. Re1+ {[%emt 0:01:41]} Kd5 {[%emt 0:00:59]} 39. Rg7 {[%emt 0:00:31]} R8d7 {[%emt 0:02:24]} 40. Rxd7 {[%emt 0:04:58]} Rxd7 {[%emt 0:01:07]} 41. Rc1 {[%emt 0:05:54]} Rf7 {[%emt 0:03:30]} 42. Kg3 {[%emt 0:00:30]} Kd4 {[%emt 0:03:30]} 43. Rc3 {[%emt 0:01:30]} Rf6 {[%emt 0:00:30]} 44. Rc4+ {[%emt 0:03:30]} Kd3 {[%emt 0:00:30]} 45. Rc7 {[%emt 0:00:30]} Rb6 {[%emt 0:00:30]} 46. Rc3+ {[%emt 0:00:30]} Kd2 {[%emt 0:00:30]} 47. Kf4 {[%emt 0:00:30]} Ra6 {[%emt 0:17:02]} 48. Ke4 {[%emt 0:06:40]} Ra2 {[%emt 0:00:18]} 49. Rc7 {[%emt 0:00:32]} b6 {[%emt 0:06:53]} 50. Kd4 {[%emt 0:00:12]} 1/2-1/2

[Event "Turkey IS Bank Super League 2017"]
[Site "Darica-Kocaeli"]
[Date "2017.07.31"]
[Round "7"]
[White "Tasdogen, Dincer"]
[Black "Gokerkan, Cem Kaan"]
[Result "1/2-1/2"]
[ECO "B20"]
[WhiteElo "2215"]
[BlackElo "2321"]
[Annotator "NA"]
[PlyCount "87"]
[EventType "team-tourn"]
[EventCountry "TUR"]
[SourceTitle "playchess.com"]
[Source "ChessBase"]
[SourceQuality "1"]
[TimeControl "40/5400+30:1800+30"]

1. e4 {[%emt 0:00:30]} c5 {[%emt 0:01:00]} 2. Ne2 {[%emt 0:00:30]} Nf6 {[%emt 0:00:30]} 3. Nbc3 {[%emt 0:00:30]} d5 {[%emt 0:02:30]} 4. exd5 {[%emt 0:01:30]} Nxd5 {[%emt 0:00:30]} 5. g3 {[%emt 0:18:30]} Nxc3 {[%emt 0:00:30] LiveBook: 5 Games} 6. Nxc3 {[%emt 0:00:00]} Bf5 {[%emt 0:00:30]} 7. Bg2 {[%emt 0:04:00]} Qd7 {[%emt 0:00:30]} 8. d3 {[%emt 0:05:30]} Nc6 {[%emt 0:00:30]} 9. Be3 {[%emt 0:02:30]} Nd4 {[%emt 0:19:30]} 10. Ne4 {[%emt 0:14:30]} e5 {[%emt 0:03:30]} 11. c3 {[%emt 0:17:30]} Ne6 {[%emt 0:00:30]} 12. g4 {[%emt 0:08:30]} (12. Qf3 $5 {[%cal Rf3f5]} Bg6 13. h4 $11) 12... Bg6 {[%emt 0:01:30]} 13. Qb3 {[%emt 0:01:30]} Be7 {[%emt 0:10:30]} 14. O-O-O {[%emt 0:06:30]} Rc8 {[%emt 0:09:30]} 15. Ng3 {[%emt 0:06:27]} b5 $11 {[%emt 0:06:30]} 16. Qd5 {[%emt 0:02:04]} Qxd5 {[%emt 0:10:30]} 17. Bxd5 {[%emt 0:00:01]} Kd7 {[%emt 0:07:30]} 18. h4 {[%emt 0:06:29]} h6 {[%emt 0:00:00]} 19. Be4 {[%emt 0:00:39]} Bh7 {[%emt 0:04:00]} 20. Bxh7 {[%emt 0:01:48]} Rxh7 {[%emt 0:00:30]} 21. h5 {[%emt 0:00:13]} Rhh8 {[%emt 0:05:52]} 22. Kb1 {[%emt 0:00:29]} Rhd8 {[%emt 0:01:58]} 23. Nf5 {[%emt 0:00:43]} Bf6 {[%emt 0:00:49]} 24. d4 {[%emt 0:00:30]} exd4 {[%emt 0:00:51]} 25. cxd4 {[%emt 0:00:01]} cxd4 {[%emt 0:03:48]} 26. Nxd4 {[%emt 0:00:01]} Nxd4 {[%emt 0:01:32]} 27. Bxd4 {[%emt 0:00:30]} Bxd4 {[%emt 0:00:00]} 28. Rxd4+ {[%emt 0:00:00]} Kc6 {[%emt 0:00:14]} 29. Rhd1 {[%emt 0:01:36]} Rxd4 {[%emt 0:00:35]} 30. Rxd4 {[%emt 0:00:01]} Re8 {[%emt 0:00:53]} 31. a4 {[%emt 0:01:20]} Re1+ {[%emt 0:00:19]} 32. Ka2 {[%emt 0:00:21]} a6 {[%emt 0:02:48]} 33. axb5+ {[%emt 0:00:24]} axb5 {[%emt 0:00:00]} 34. Rd8 {[%emt 0:00:48]} Re4 {[%emt 0:02:02]} 35. f3 {[%emt 0:00:20]} Ra4+ {[%emt 0:01:10]} 36. Kb1 {[%emt 0:00:34]} Rf4 {[%emt 0:00:22]} 37. Rg8 {[%emt 0:00:33]} Rxf3 {[%emt 0:00:43]} 38. Rxg7 {[%emt 0:00:01]} Kd5 {[%emt 0:03:19]} 39. g5 {[%emt 0:00:47]} hxg5 {[%emt 0:01:13]} 40. Rxg5+ {[%emt 0:00:00]} Kc4 {[%emt 0:01:32]} 41. Ka2 {[%emt 0:09:50]} Rf4 {[%emt 0:15:01]} 42. h6 {[%emt 0:03:52]} Rh4 {[%emt 0:00:47]} 43. Rf5 {[%emt 0:01:12]} Rxh6 {[%emt 0:03:42]} 44. Rf4+ {[%emt 0:01:00]} 1/2-1/2

[Event "Turkey IS Bank Super League 2017"]
[Site "Darica-Kocaeli"]
[Date "2017.07.31"]
[Round "7"]
[White "Yilmaz, Goktan"]
[Black "Kiremitciyan, Ari"]
[Result "0-1"]
[ECO "B49"]
[WhiteElo "2202"]
[BlackElo "2240"]
[Annotator "NA"]
[PlyCount "92"]
[EventType "team-tourn"]
[EventCountry "TUR"]
[SourceTitle "playchess.com"]
[Source "ChessBase"]
[SourceQuality "1"]
[TimeControl "40/5400+30:1800+30"]

1. e4 {[%emt 0:01:30]} c5 {[%emt 0:01:00]} 2. Nf3 {[%emt 0:00:30]} e6 {[%emt 0:00:30]} 3. d4 {[%emt 0:00:30]} cxd4 {[%emt 0:00:30]} 4. Nxd4 {[%emt 0:00:30]} Nc6 {[%emt 0:00:30]} 5. Nc3 {[%emt 0:00:30]} Qc7 {[%emt 0:00:30]} 6. Be3 {[%emt 0:00:30]} a6 {[%emt 0:00:30]} 7. Be2 {[%emt 0:00:00]} b5 {[%emt 0:07:30]} 8. Nxc6 {[%emt 0:00:00]} dxc6 {[%emt 0:01:30] B49: Sicilian: Taimanov: 5 Nc3 Qc7 6 Be3 a6 7 Be2} 9. a4 {[%emt 0:00:00]} b4 {[%emt 0:04:30]} 10. Nb1 {[%emt 0:00:00]} Nf6 {[%emt 0:01:30]} 11. Nd2 {[%emt 0:00:00]} e5 $146 {[%emt 0:03:30]} ({Predecessor:} 11... c5 12. f3 Bb7 13. Nc4 Nd7 14. Qc1 Be7 15. O-O O-O 16. Bf4 {1-0 (35) Topalov,V (2785)-Svidler,P (2758) Khanty-Mansiysk 2014}) 12. f3 {[%emt 0:03:00]} Be7 {[%emt 0:02:30]} 13. Nc4 {[%emt 0:00:30]} Nd7 {[%emt 0:01:30]} 14. O-O {[%emt 0:07:30]} a5 {[%emt 0:05:30]} 15. Kh1 {[%emt 0:02:30]} O-O {[%emt 0:02:30]} 16. f4 {[%emt 0:07:30]} exf4 {[%emt 0:05:30]} (16... Ba6 $11) 17. Bxf4 {[%emt 0:00:30]} Qa7 {[%emt 0:00:30]} 18. Bd3 {[%emt 0:05:30]} Nc5 {[%emt 0:03:30]} 19. Be3 {[%emt 0:04:30]} Qc7 {[%emt 0:07:30]} 20. Qh5 {[%emt 0:01:30]} Nxd3 {[%emt 0:07:30]} 21. cxd3 {[%emt 0:01:30]} c5 {[%emt 0:05:30]} 22. Rac1 {[%emt 0:02:30]} Be6 {[%emt 0:03:30]} 23. d4 {[%emt 0:22:30]} cxd4 {[%emt 0:04:30]} 24. Bxd4 {[%emt 0:00:30]} Qd7 {[%emt 0:06:30]} ({Of course not} 24... Bxc4 $6 {[#]} 25. b3 $1 $11 {[%mdl 512]}) 25. Bg1 {[%emt 0:08:30]} Bxc4 {[%emt 0:06:10]} 26. Rxc4 {[%emt 0:00:30]} Qxa4 $17 {[%emt 0:00:10]} 27. Rc7 {[%emt 0:02:30]} Qe8 {[%emt 0:01:07]} 28. Bd4 {[%emt 0:07:30]} Ra6 {[%emt 0:06:56]} 29. Qd5 {[%emt 0:10:16]} a4 {[%emt 0:02:47]} 30. e5 {[%emt 0:02:38]} a3 {[%emt 0:01:16]} 31. bxa3 {[%emt 0:00:41]} bxa3 {[%emt 0:00:11]} 32. Bc3 {[%emt 0:01:29]} Re6 {[%emt 0:00:24]} 33. Qb7 {[%emt 0:01:39]} h6 {[%emt 0:04:17]} 34. h3 {[%emt 0:00:21]} Bd8 {[%emt 0:01:13]} 35. Rd7 {[%emt 0:02:41]} Rb6 {[%emt 0:01:58]} 36. Qd5 {[%emt 0:01:15]} Be7 {[%emt 0:01:03]} 37. Bd4 {[%emt 0:01:17]} Re6 {[%emt 0:00:46]} 38. Qb7 {[%emt 0:00:01]} Kh8 {[%emt 0:01:05]} 39. Rc1 {[%emt 0:00:37]} Bg5 {[%emt 0:01:05]} 40. Rcc7 {[%emt 0:00:00]} Rxe5 {[%emt 0:01:32]} 41. Bxe5 {[%emt 0:04:35]} Qxe5 {[%emt 0:00:30]} 42. Qb1 {[%emt 0:01:30]} a2 {[%emt 0:02:30]} 43. Qxa2 {[%emt 0:00:30]} Qe1+ {[%emt 0:00:00]} 44. Kh2 {[%emt 0:00:30]} Bf4+ {[%emt 0:00:00]} 45. g3 {[%emt 0:00:30]} Qxg3+ {[%emt 0:00:30]} 46. Kh1 {[%emt 0:00:00]} Qxh3+ {[%emt 0:00:00]} 0-1

[Event "Turkey IS Bank Super League 2017"]
[Site "Darica-Kocaeli"]
[Date "2017.07.31"]
[Round "7"]
[White "Tofan, Ibrahim"]
[Black "Apaydin, Fethi"]
[Result "1-0"]
[ECO "A36"]
[WhiteElo "2194"]
[BlackElo "2258"]
[Annotator "NA"]
[PlyCount "133"]
[EventType "team-tourn"]
[EventCountry "TUR"]
[SourceTitle "playchess.com"]
[Source "ChessBase"]
[SourceQuality "1"]
[TimeControl "40/5400+30:1800+30"]

1. e4 {[%emt 0:00:30]} g6 {[%emt 0:01:00]} 2. g3 {[%emt 0:00:30]} Bg7 {[%emt 0:00:30]} 3. Bg2 {[%emt 0:00:30]} c5 {[%emt 0:00:30]} 4. Ne2 {[%emt 0:00:30]} Nc6 {[%emt 0:00:30]} 5. c4 {[%emt 0:00:30]} d6 {[%emt 0:04:30]} 6. O-O {[%emt 0:00:30]} Nf6 {[%emt 0:03:30]} 7. Nbc3 {[%emt 0:00:30]} O-O {[%emt 0:00:30]} 8. d3 {[%emt 0:05:30]} a6 {[%emt 0:06:30]} 9. f4 {[%emt 0:03:30]} Bg4 {[%emt 0:00:30] A36: Symmetrical English vs ...g6: 4 Bg2 Bg7} (9... Rb8 10. h3 Nd4 11. Nxd4 cxd4 12. Nd5 Nxd5 13. cxd5 Qb6 14. Qe2 Bd7 15. e5 Rbc8 16. e6 fxe6 17. dxe6 Bc6 18. f5 Bxg2 19. Kxg2 Rxf5 20. Rxf5 gxf5 {0-1 (38) Brendel,O (2348)-Kanep,M (2509) Wroclaw 2014}) 10. Be3 {[%emt 0:07:30]} (10. h3 $5 {[%cal Rh3g4]} Bxe2 11. Nxe2 $11) 10... Nd7 $146 {[%emt 0:10:30]} ({Find the theoretical novelty and annotate with similar games:} 10... Qd7 11. d4 cxd4 12. Bxd4 Nxd4 13. Qxd4 Bxe2 14. Nxe2 Ng4 15. e5 Qc7 16. Nc3 dxe5 17. fxe5 Nxe5 {0-1 (75) Cosme Contreras,T (1667)-Garcia Contreras,C (1863) Lima 2015}) 11. f5 {[%emt 0:10:30] [#]} Nd4 {[%emt 0:11:30]} (11... b5 $1 $15 {[%mdl 512]}) 12. Qd2 {[%emt 0:08:30]} Bxe2 {[%emt 0:01:30]} 13. Nxe2 {[%emt 0:00:30]} Nxe2+ {[%emt 0:10:30]} 14. Qxe2 {[%emt 0:00:30]} Ne5 {[%emt 0:00:30]} 15. d4 {[%emt 0:06:30]} cxd4 {[%emt 0:07:30]} 16. Bxd4 {[%emt 0:00:30]} Nd7 {[%emt 0:00:30]} 17. Bxg7 {[%emt 0:00:30]} Kxg7 {[%emt 0:00:30]} 18. Kh1 {[%emt 0:01:30]} Rc8 {[%emt 0:04:30]} 19. b3 {[%emt 0:03:30]} Rc5 {[%emt 0:05:30]} 20. Rad1 {[%emt 0:06:30]} Qc7 {[%emt 0:03:30]} 21. Rd5 {[%emt 0:02:30]} b6 {[%emt 0:02:30]} 22. Rfd1 {[%emt 0:02:30]} Nf6 $15 {[%emt 0:03:30]} 23. Rxc5 {[%emt 0:01:30]} Qxc5 {[%emt 0:00:30]} 24. Qf3 {[%emt 0:17:19]} Rc8 {[%emt 0:03:47]} 25. h3 {[%emt 0:03:12]} Qe5 {[%emt 0:00:51]} 26. g4 {[%emt 0:03:47]} h6 {[%emt 0:03:06]} 27. Qd3 {[%emt 0:03:01]} a5 {[%emt 0:08:15]} 28. Qd4 {[%emt 0:00:59]} Qxd4 {[%emt 0:03:29]} 29. Rxd4 {[%emt 0:00:01]} Nd7 {[%emt 0:00:22]} 30. Kg1 {[%emt 0:02:48]} Kf6 {[%emt 0:00:35]} 31. Kf2 {[%emt 0:00:17]} Ne5 {[%emt 0:01:08]} 32. Bf1 {[%emt 0:00:44]} Rc5 {[%emt 0:02:24]} 33. a3 {[%emt 0:00:52]} Nd7 {[%emt 0:00:48]} 34. Ke3 {[%emt 0:02:09]} Ke5 {[%emt 0:00:55]} 35. b4 {[%emt 0:05:43]} axb4 {[%emt 0:00:30]} 36. axb4 {[%emt 0:00:30]} Rc7 {[%emt 0:00:00]} 37. Rd5+ {[%emt 0:00:23]} Kf6 {[%emt 0:00:00]} 38. fxg6 {[%emt 0:00:03]} fxg6 {[%emt 0:00:46]} 39. h4 {[%emt 0:00:16]} g5 {[%emt 0:01:05]} 40. hxg5+ {[%emt 0:00:00]} hxg5 {[%emt 0:00:29]} 41. Rf5+ {[%emt 0:02:56]} Kg6 {[%emt 0:01:30]} 42. Rb5 {[%emt 0:00:30]} Rc6 {[%emt 0:16:07]} 43. Be2 {[%emt 0:04:30]} e6 {[%emt 0:00:19]} 44. Kd4 {[%emt 0:01:30]} Kf6 {[%emt 0:00:36]} 45. Ke3 {[%emt 0:04:30]} Ne5 {[%emt 0:00:54]} 46. Kd4 {[%emt 0:01:30]} Ng6 {[%emt 0:00:48]} 47. Bf1 {[%emt 0:02:40]} e5+ {[%emt 0:04:05]} 48. Ke3 {[%emt 0:05:14]} Nf4 {[%emt 0:00:10]} 49. Kf2 {[%emt 0:02:19]} Ke6 {[%emt 0:06:13]} 50. Rd5 {[%emt 0:03:09]} Rc7 {[%emt 0:01:05]} 51. Rb5 {[%emt 0:00:39]} Rc6 {[%emt 0:01:22]} 52. Rd5 {[%emt 0:00:08]} Ke7 {[%emt 0:02:44]} 53. Rd2 {[%emt 0:00:49]} Rc7 {[%emt 0:00:35]} 54. Ra2 {[%emt 0:00:19]} Ne6 {[%emt 0:00:34]} 55. Ra8 {[%emt 0:02:32]} Rb7 {[%emt 0:00:42]} 56. Rh8 {[%emt 0:00:46]} Nf8 {[%emt 0:00:32]} 57. Rg8 {[%emt 0:01:25]} Ne6 {[%emt 0:00:05]} 58. Rh8 {[%emt 0:00:07]} Kf6 {[%emt 0:00:51]} 59. Rh6+ {[%emt 0:00:28]} Kf7 {[%emt 0:00:26]} 60. c5 {[%emt 0:00:24]} Nf8 {[%emt 0:00:41]} 61. c6 {[%emt 0:01:38]} Ra7 {[%emt 0:00:35]} 62. Rxd6 {[%emt 0:00:15]} Ke7 {[%emt 0:00:15]} 63. Rd5 {[%emt 0:00:21]} Ra2+ {[%emt 0:00:03]} 64. Ke1 {[%emt 0:00:51]} Ra1+ {[%emt 0:00:36]} 65. Kd2 {[%emt 0:01:17]} Ne6 {[%emt 0:01:05]} 66. Rd7+ {[%emt 0:00:25]} Kf6 {[%emt 0:00:35]} 67. Bc4 {[%emt 0:00:13]} 1-0